bitfinex/quotes_ETHUSD_20230404
["timestamp","ask_amount","ask_price","bid_price","bid_amount"]
[1680641242865,5.98702218,1874.6,1874.2,0.080034]
[1680641243022,0.23,1874.5,1874.3,0.26676]
[1680641243223,2.76602218,1874.4,1874.3,0.26676]
[1680641243425,3.00402218,1874.4,1874.3,0.26676]
[1680641244366,3.00402218,1874.4,1874.2,0.346794]
[1680641244664,3.00402218,1874.4,1874.3,0.2707918]
[1680641244960,3.00402218,1874.4,1874.3,1.0710818]
[1680641245324,0.008,1874.4,1874.3,1.0710818]
[1680641245523,0.008,1874.6,1874.3,1.0710818]
[1680641245760,2.77402218,1874.7,1874.3,1.0710818]
[1680641246479,2.77402218,1874.7,1874.3,1.28489698]
[1680641246849,2.77402218,1874.7,1874.3,0.75136698]
[1680641247036,2.77402218,1874.7,1874.3,0.5375518]
[1680641247852,0.23,1874.6,1874.3,0.5375518]
[1680641248058,3.00402218,1874.6,1874.3,0.5375518]
[1680641248848,2.99602218,1874.6,1874.3,0.5375518]
[1680641249478,3.00402218,1874.6,1874.3,0.5375518]
[1680641250680,2.76602218,1874.5,1874.3,0.5375518]
[1680641250888,2.77402218,1874.5,1874.3,0.2707918]
[1680641251381,3.0744244,1874.5,1874.3,0.2707918]
[1680641253290,2.7688053,1874.5,1874.3,0.2727918]
[1680641253474,3.441,1874.4,1874.3,0.2707918]
[1680641253674,6.20702218,1874.4,1874.3,0.2707918]
[1680641253844,8.13006988,1874.4,1874.3,0.2707918]
[1680641255692,8.13006988,1874.4,1874.3,0.5375518]
[1680641256694,8.13006988,1874.4,1874.3,0.2707918]
[1680641257396,15.00676988,1874.4,1874.3,0.2707918]
[1680641257764,18.00676988,1874.4,1874.3,0.2707918]
[1680641258064,18.22016988,1874.4,1874.3,0.2707918]
[1680641258459,19.35816988,1874.4,1873.6,0.82743583]
[1680641258662,4.342,1873.9,1873.5,0.82745583]
[1680641258874,6.64122218,1873.8,1873.5,0.82745583]
[1680641259080,6.20902218,1873.8,1873.5,0.82745583]
[1680641259591,6.20902218,1873.8,1873.5,0.27287]
[1680641260564,6.20902218,1873.8,1873.5,0.26887]
[1680641261190,6.20902218,1873.8,1873.5,0.26687]
[1680641261565,6.20902218,1873.8,1873.4,1.09436583]
[1680641261783,6.20902218,1873.8,1873.5,0.26687]
[1680641262793,6.20902218,1873.8,1873.4,1.36124583]
[1680641263805,6.20902218,1873.8,1873.4,0.82746583]
[1680641265458,6.20902218,1873.8,1873.5,0.36570224]
[1680641266167,6.20902218,1873.8,1873.5,0.63457224]
[1680641267400,6.20902218,1873.8,1873.5,0.63657224]
[1680641268203,6.20902218,1873.8,1873.5,0.63457224]
[1680641269100,6.20902218,1873.8,1873.5,0.63657224]
[1680641270300,6.20902218,1873.8,1873.5,0.63457224]
[1680641270960,6.20902218,1873.8,1873.5,0.63657224]
[1680641272200,7.34402218,1873.8,1873.5,0.63657224]
[1680641274305,7.34402218,1873.8,1873.5,0.63857224]
[1680641274603,7.34402218,1873.8,1873.5,0.63657224]
[1680641274973,7.34402218,1873.8,1873.5,0.63457224]
[1680641275191,7.34402218,1873.8,1873.5,0.63657224]
[1680641275563,6.20617496,1873.8,1873.5,2.40654605]
[1680641276494,5.97617496,1873.8,1873.5,2.40654605]
[1680641277434,5.97617496,1873.8,1873.5,2.40854605]
[1680641277741,5.97617496,1873.8,1873.5,2.41254605]
[1680641278996,5.97617496,1873.8,1873.5,2.96713188]
[1680641279235,5.97617496,1873.8,1873.6,0.56356319]
[1680641282823,2.76517496,1873.8,1873.6,1.09729319]
[1680641283000,2.76317496,1873.8,1873.6,1.65187902]
[1680641286940,0.002,1873.9,1873.6,1.65187902]
[1680641287114,0.002,1873.9,1873.7,0.4320179]
[1680641287115,2.76602218,1873.9,1873.7,0.4320179]
[1680641287514,2.76602218,1873.8,1873.6,0.55458583]
[1680641287830,2.76602218,1873.8,1873.5,1.27944255]
[1680641287831,2.76602218,1873.8,1873.5,1.83002838]
[1680641288040,2.76602218,1873.8,1873.5,1.82602838]
[1680641288243,2.76602218,1873.8,1873.5,1.82802838]
[1680641288649,2.76602218,1873.8,1873.5,1.82602838]
[1680641288944,0.002,1873.9,1873.6,0.73718867]
[1680641289143,2.99602218,1873.9,1873.6,1.00403867]
[1680641289444,2.99602218,1873.9,1873.6,0.73718867]
[1680641289622,2.99602218,1873.9,1873.6,1.00404867]
[1680641289818,2.76602218,1873.8,1873.6,0.55458583]
[1680641290027,0.23,1873.7,1873.5,1.65333457]
[1680641290222,2.76602218,1873.6,1873.5,0.82545583]
[1680641290422,2.99602218,1873.6,1873.5,1.63850874]
[1680641290826,2.99602218,1873.6,1873.5,2.1931792]
[1680641291051,2.99602218,1873.6,1873.5,1.63850874]
[1680641294629,2.99602218,1873.6,1873.5,1.91580166]
[1680641295309,0.01,1873.7,1873.5,3.30754828]
[1680641295462,2.76602218,1873.7,1873.6,1.38739188]
[1680641295665,2.76602218,1873.7,1873.6,1.63302513]
[1680641296964,0.01,1873.8,1873.6,1.63302513]
[1680641297175,0.008,1874.0,1873.7,0.55512007]
[1680641297321,2.76602218,1873.9,1873.8,0.8005]
[1680641297525,2.77402218,1873.9,1873.8,0.8005]
[1680641297837,0.008,1873.9,1873.8,2.55852208]
[1680641298037,0.008,1874.4,1873.8,3.11257367]
[1680641298363,2.76602218,1874.3,1874.0,0.55491813]
[1680641298569,2.77402218,1874.3,1874.0,0.55491813]
[1680641298766,2.77402218,1874.3,1874.0,0.82170813]
[1680641299145,2.77402218,1874.3,1874.0,2.18769532]
[1680641299688,2.77402218,1874.3,1874.1,0.55491813]
[1680641299839,0.008,1874.3,1874.1,0.55491813]
[1680641300048,0.008,1874.5,1874.2,0.26678]
[1680641300389,2.77402218,1874.5,1874.2,0.26678]
[1680641300880,2.77402218,1874.5,1874.2,0.82169813]
[1680641301185,2.77402218,1874.5,1874.2,0.26678]
[1680641301487,2.77402218,1874.5,1874.1,1.35527813]
[1680641301691,2.77402218,1874.5,1874.1,1.7179295]
[1680641301839,2.76602218,1874.4,1874.1,0.55491813]
[1680641302045,2.77402218,1874.4,1874.0,0.55491813]
[1680641302377,2.77402218,1874.4,1874.0,0.82171813]
[1680641302579,2.77402218,1874.4,1874.0,2.33510885]
[1680641302956,2.77402218,1874.4,1874.0,1.65409532]
[1680641303688,5.98502218,1874.4,1874.0,0.82171813]
[1680641303980,0.23,1874.3,1874.0,0.82171813]
[1680641304187,0.238,1874.3,1874.0,1.35532813]
[1680641304490,0.238,1874.4,1874.1,0.69045094]
[1680641304791,3.00402218,1874.4,1874.1,0.95723094]
[1680641304989,3.00402218,1874.4,1874.1,0.26678]
[1680641305957,3.00402218,1874.4,1874.1,0.80036]
[1680641308587,2.77402218,1874.4,1874.1,0.80036]
[1680641309156,2.76602218,1874.3,1874.1,0.80036]
[1680641309457,2.77402218,1874.3,1874.1,0.80036]
[1680641310791,0.008,1874.3,1874.1,0.80036]
[1680641310987,0.008,1874.4,1874.1,1.04260681]
[1680641311141,2.77402218,1874.4,1874.1,1.04260681]
[1680641312462,2.77402218,1874.4,1874.1,1.40053304]
[1680641312667,2.77402218,1874.4,1874.1,1.15828623]
[1680641313242,2.76602218,1874.3,1874.1,1.15828623]
[1680641313490,2.77402218,1874.3,1874.1,1.15828623]
[1680641316672,2.7623968,1874.3,1874.1,1.15828623]
[1680641320170,2.7623968,1874.3,1874.1,0.62470623]
[1680641324665,2.7623968,1874.3,1874.1,0.35792623]
[1680641324859,2.7623968,1874.3,1874.1,0.62471623]
[1680641325510,2.7623968,1874.3,1874.1,0.35792623]
[1680641328611,2.7623968,1874.3,1874.1,0.62471623]
[1680641332931,2.7623968,1874.3,1874.1,1.17963436]
[1680641333227,2.7623968,1874.3,1874.1,0.62471623]
[1680641333391,2.7623968,1874.3,1874.1,1.17963436]
[1680641333592,2.7623968,1874.3,1874.1,0.62471623]
[1680641334120,2.7623968,1874.3,1874.1,1.17963436]
[1680641337445,2.7623968,1874.3,1874.1,1.17963436]
[1680641339350,2.75861125,1874.3,1874.1,1.17963436]
[1680641340208,2.75861125,1874.3,1874.1,2.08139368]
[1680641341044,2.75861125,1874.3,1874.1,2.91377087]
[1680641341248,2.75861125,1874.3,1874.2,0.55491813]
[1680641341421,2.75861125,1874.3,1874.1,2.64698087]
[1680641341618,2.75861125,1874.3,1874.2,0.55491813]
[1680641343533,2.75861125,1874.3,1874.2,0.66491813]
[1680641344268,6.24567237,1874.3,1874.2,0.66491813]
[1680641344434,7.61767237,1874.3,1874.2,0.11]
[1680641344629,7.61767237,1874.3,1874.1,1.38729532]
[1680641344630,10.61767237,1874.3,1874.1,0.55491813]
[1680641344943,5.64276724,1874.2,1874.1,0.55491813]
[1680641345146,8.41078942,1874.2,1874.1,0.55491813]
[1680641345341,8.41078942,1874.2,1874.0,1.38729532]
[1680641345546,7.11702218,1874.1,1874.0,0.55491813]
[1680641345744,8.19010112,1874.1,1874.0,0.55491813]
[1680641346535,8.19010112,1874.1,1874.0,0.91908956]
[1680641347451,7.96010112,1874.1,1874.0,0.91908956]
[1680641350830,7.96010112,1874.1,1874.0,1.18588956]
[1680641350831,3.90802218,1874.1,1874.0,1.18588956]
[1680641351065,2.76602218,1874.1,1874.0,1.99695862]
[1680641351265,2.76602218,1874.1,1874.0,2.11495862]
[1680641352668,2.76602218,1874.1,1874.0,1.58134862]
[1680641354787,2.76602218,1874.1,1874.0,2.43797465]
[1680641355080,0.002,1874.2,1874.0,2.87606203]
[1680641355285,4.354,1874.6,1874.1,1.94540998]
[1680641355492,4.354,1874.6,1874.2,1.65633105]
[1680641355493,2.76602218,1874.5,1874.2,1.65633105]
[1680641355643,2.76602218,1874.5,1874.2,1.98648753]
[1680641356141,2.76602218,1874.5,1874.3,0.82258842]
[1680641356478,2.76602218,1874.5,1874.3,1.18614782]
[1680641356779,2.76602218,1874.5,1874.3,0.82258842]
[1680641356966,2.76602218,1874.5,1874.3,0.46540875]
[1680641357165,2.76602218,1874.5,1874.3,0.19864875]
[1680641357685,2.76602218,1874.5,1874.2,0.82259842]
[1680641362303,2.76602218,1874.5,1874.2,0.55582842]
[1680641362602,2.76602218,1874.5,1874.2,0.82259842]
[1680641363296,2.76249924,1874.5,1874.2,0.55582842]
[1680641364482,2.76249924,1874.5,1874.3,0.3668969]
[1680641366507,0.002,1874.6,1874.4,0.83374263]
[1680641366801,0.1,1874.8,1874.5,1.63328015]
[1680641366967,0.1,1874.8,1874.6,0.5553662]
[1680641367298,2.86602218,1874.8,1874.6,0.77423084]
[1680641367498,2.86602218,1874.8,1874.7,0.36203267]
[1680641367659,2.86602218,1874.8,1874.6,0.48557464]
[1680641369967,0.1,1874.8,1874.6,1.3555162]
[1680641373371,0.1,1874.8,1874.6,0.80015]
[1680641374678,0.1,1874.8,1874.6,1.3555162]
[1680641374879,0.1,1874.8,1874.6,0.80015]
[1680641375084,0.1,1874.8,1874.7,0.080015]
[1680641375286,0.1,1874.8,1874.7,1.946955]
[1680641377219,0.1,1874.8,1874.7,9.2813212]
[1680641377385,0.1,1874.8,1874.7,9.2833212]
[1680641377785,0.1,1874.8,1874.7,10.11640135]
[1680641377984,0.1,1874.8,1874.7,10.11417351]
[1680641378290,0.1,1874.8,1874.7,10.1141704]
[1680641378687,0.11,1875.5,1874.9,5.635]
[1680641378892,0.11,1875.5,1875.4,6.775]
[1680641378893,0.1,1875.5,1875.4,6.775]
[1680641379093,0.1,1875.5,1875.4,8.64124]
[1680641379484,0.07408036,1875.5,1875.4,8.90043645]
[1680641379689,0.07408036,1875.5,1875.4,10.11255686]
[1680641380530,0.04617894,1875.5,1875.4,10.11255686]
[1680641381529,0.01851003,1875.5,1875.4,10.11255686]
[1680641381759,0.00051003,1875.5,1875.4,12.87857904]
[1680641382042,0.00051003,1875.5,1875.4,13.14627447]
[1680641382546,0.1,1875.6,1875.5,0.5]
[1680641382744,0.1,1875.6,1875.5,11.69742963]
[1680641383047,0.1,1876.0,1875.6,0.1]
[1680641383246,0.1,1876.0,1875.8,6.771]
[1680641383417,0.1,1876.0,1875.8,10.57065]
[1680641383745,0.1,1876.0,1875.8,13.33667218]
[1680641383915,0.1,1876.0,1875.8,12.30447976]
[1680641384943,0.1,1876.0,1875.8,11.16847976]
[1680641385746,0.50726,1876.1,1875.9,0.1]
[1680641386044,0.50726,1876.1,1876.0,7.50065]
[1680641386606,0.50726,1876.1,1876.0,10.26667218]
[1680641386808,0.50726,1876.1,1876.0,8.79404322]
[1680641387216,0.50726,1876.1,1876.0,11.5600654]
[1680641387509,0.4804077,1876.1,1876.0,11.5600654]
[1680641388132,0.1,1876.3,1876.0,12.7000654]
[1680641388449,0.1,1876.3,1876.2,6.775]
[1680641388647,0.1,1876.3,1876.2,18.3485444]
[1680641389536,0.07353334,1876.3,1876.2,18.3485444]
[1680641390463,0.07353334,1876.3,1876.2,22.8937444]
[1680641390662,0.04754978,1876.3,1876.2,23.15357997]
[1680641391074,0.1,1876.5,1876.3,0.047]
[1680641391373,0.1,1876.7,1876.5,5.635]
[1680641391528,0.1,1876.7,1876.6,16.85505]
[1680641391960,0.1,1876.7,1876.6,7.50005]
[1680641392367,0.1,1876.7,1876.6,11.63607218]
[1680641392551,0.1,1876.7,1876.6,14.40607218]
[1680641392747,0.1,1876.7,1876.6,16.1236274]
[1680641393684,0.1,1876.7,1876.6,20.8390274]
[1680641394063,0.1,1876.7,1876.6,16.93300522]
[1680641395461,0.1,1876.7,1876.6,17.22360435]
[1680641396489,0.1,1877.1,1876.7,0.1]
[1680641396635,0.1,1877.1,1877.0,1.132]
[1680641396846,0.1,1877.1,1877.0,13.33216218]
[1680641397192,0.1,1877.1,1877.0,13.43716218]
[1680641397392,0.1,1877.1,1877.0,12.30516218]
[1680641397575,0.06941255,1877.1,1877.0,12.30516218]
[1680641397888,0.06941255,1877.1,1877.0,14.5556254]
[1680641398587,0.03998879,1877.1,1877.0,14.84986302]
[1680641399159,0.03998879,1877.1,1877.0,12.08384084]
[1680641399351,0.03998879,1877.1,1877.0,14.84986302]
[1680641399552,0.01067912,1877.1,1877.0,14.84986302]
[1680641399996,0.01067912,1877.1,1877.0,19.42496302]
[1680641400674,0.007,1877.3,1877.0,19.42496302]
[1680641400866,0.007,1877.3,1877.2,7.49946]
[1680641401595,0.1,1877.5,1877.2,7.78816935]
[1680641401897,0.1,1877.5,1877.2,7.60246]
[1680641402693,0.1,1877.5,1877.3,0.25844675]
[1680641402875,0.1,1877.5,1877.4,7.49927]
[1680641403049,0.1,1877.5,1877.4,2.73904168]
[1680641403764,0.1,1877.5,1877.4,0.89797]
[1680641405583,0.1,1877.5,1877.4,1.18522876]
[1680641405749,0.1,1877.5,1877.4,0.65257876]
[1680641405953,4.02178117,1877.5,1877.4,0.38625876]
[1680641406191,4.02978117,1877.5,1877.4,0.65257876]
[1680641406990,4.02978117,1877.5,1877.4,0.38625876]
[1680641407197,1.26375899,1877.5,1877.4,0.65257876]
[1680641407404,1.234,1877.5,1877.4,1.18522876]
[1680641408251,1.234,1877.5,1877.4,2.36905164]
[1680641408252,0.108,1877.5,1877.4,2.36905164]
[1680641408489,0.1,1877.5,1877.4,2.36905164]
[1680641409048,0.1,1877.5,1877.4,7.90505164]
[1680641410657,0.07364234,1877.5,1877.4,7.90505164]
[1680641411193,0.07364234,1877.5,1877.4,10.67107382]
[1680641411706,0.04762608,1877.5,1877.4,10.67107382]
[1680641411910,1.663274,1877.9,1877.4,10.67107382]
[1680641412093,0.1,1878.3,1877.8,5.635]
[1680641412403,0.007,1879.0,1878.2,2.76602218]
[1680641412554,0.007,1879.0,1878.5,5.635]
[1680641412751,0.007,1879.0,1878.6,6.99696]
[1680641413190,0.007,1879.0,1878.6,12.76698218]
[1680641413398,0.007,1879.0,1878.6,12.76298218]
[1680641413905,0.007,1879.0,1878.6,9.76298218]
[1680641415279,0.007,1879.0,1878.6,6.99696]
[1680641416073,0.05,1878.7,1878.6,6.99696]
[1680641417186,0.05,1878.7,1878.6,5.90115]
[1680641417499,0.05,1878.7,1878.6,0.26615]
[1680641417900,0.05,1878.7,1878.4,0.53236]
[1680641418100,0.05,1878.7,1878.3,5.641]
[1680641418101,0.05,1878.7,1878.6,0.26615]
[1680641419323,0.05,1878.7,1878.6,0.79846]
[1680641419601,0.05,1878.7,1878.6,6.64529757]
[1680641419804,0.007,1879.0,1878.6,10.55131975]
[1680641420014,0.007,1879.0,1878.9,6.775]
[1680641420312,0.108,1879.9,1878.9,11.40380218]
[1680641420515,0.1,1879.9,1879.6,2.2]
[1680641420655,0.0069859,1880.5,1879.5,5.635]
[1680641420656,0.0069859,1880.5,1879.8,8.40102218]
[1680641420860,0.0069859,1880.5,1880.4,8.6323]
[1680641421161,0.0069859,1880.5,1880.4,5.9009]
[1680641421361,0.0069859,1880.5,1880.4,8.66692218]
[1680641421623,0.00642901,1880.6,1880.4,12.16461761]
[1680641421624,0.00141491,1880.6,1880.4,12.16461761]
[1680641421762,0.5,1881.9,1880.6,5.635]
[1680641422115,1.134,1881.4,1880.8,0.26583]
[1680641422318,2.24,1881.7,1881.3,2.76602218]
[1680641422605,0.002,1882.0,1881.4,0.79726]
[1680641422766,0.252,1883.2,1881.8,0.26569]
[1680641422963,0.252,1883.2,1881.8,0.006]
[1680641422964,0.55670605,1883.2,1881.8,0.006]
[1680641423180,2.261,1882.2,1881.6,0.006]
[1680641423400,0.009,1882.7,1882.0,2.261]
[1680641423559,0.002,1882.5,1881.8,0.002]
[1680641423756,0.5,1883.1,1881.2,2.09469]
[1680641423757,0.21242,1883.0,1881.3,0.26977]
[1680641424072,0.21242,1883.0,1881.1,2.402]
[1680641424073,0.10624,1882.5,1881.7,1.14643758]
[1680641424260,2.261,1881.8,1881.7,1.14643758]
[1680641424463,2.261,1881.9,1881.7,1.14643758]
[1680641424770,2.4801,1881.9,1881.2,0.006]
[1680641424971,2.261,1881.7,1880.9,0.006]
[1680641425185,2.211,1881.7,1880.7,5.635]
[1680641425507,2.211,1881.7,1881.0,0.27945656]
[1680641425508,0.2261,1881.6,1881.0,0.27945656]
[1680641425807,2.261,1881.5,1881.0,0.27945656]
[1680641426618,2.259,1881.7,1881.0,0.27945656]
[1680641427186,3.002,1881.9,1881.0,0.27945656]
[1680641427187,2.261,1881.4,1881.0,0.27945656]
[1680641427374,2.4871,1881.4,1881.0,0.27945656]
[1680641427576,2.261,1881.4,1881.0,0.27945656]
[1680641428323,0.002,1881.6,1881.2,8.40102218]
[1680641428525,10.9017,1882.5,1881.3,5.635]
[1680641428824,2.261,1882.1,1881.4,0.26574]
[1680641429178,2.261,1882.1,1881.5,0.02175489]
[1680641429397,2.24,1881.9,1881.5,0.02175489]
[1680641429912,0.002,1882.3,1881.7,5.635]
[1680641430075,2.259,1882.5,1881.8,3.32952218]
[1680641430274,2.259,1882.5,1881.9,0.26568]
[1680641430731,2.259,1882.5,1882.0,2.76602218]
[1680641430876,0.002,1882.7,1882.1,6.43197]
[1680641431087,0.56078557,1883.0,1882.3,5.635]
[1680641431088,0.002,1883.0,1882.3,5.635]
[1680641431420,0.13313965,1883.3,1882.5,5.635]
[1680641431629,0.13313965,1883.3,1882.7,0.26557]
[1680641431791,0.13313965,1883.3,1882.7,3.03159218]
[1680641432137,2.256,1883.2,1882.6,0.27358]
[1680641432425,2.256,1883.2,1882.5,0.2736]
[1680641432730,0.13313965,1883.3,1882.5,0.2736]
[1680641432731,2.256,1883.0,1882.6,2.76602218]
[1680641433223,2.256,1883.0,1882.4,0.02174448]
[1680641433422,2.256,1883.0,1882.4,3.05336666]
[1680641433589,2.256,1883.0,1882.5,0.30533667]
[1680641433778,2.256,1883.0,1882.4,3.05336666]
[1680641433979,2.256,1883.0,1882.2,0.53326]
[1680641433980,2.256,1882.8,1882.2,0.008]
[1680641434189,2.256,1882.6,1882.1,0.26565]
[1680641434396,2.256,1882.6,1882.0,0.26566]
[1680641434680,2.256,1882.6,1882.0,0.006]
[1680641434978,2.256,1882.6,1881.8,0.26569]
[1680641435307,0.2256,1882.5,1881.8,2.77202218]
[1680641435508,0.2256,1882.5,1881.8,0.2717]
[1680641435717,2.99162218,1882.5,1881.8,0.2657]
[1680641435883,2.256,1882.1,1881.6,0.002]
[1680641436087,2.256,1882.1,1881.3,0.53754]
[1680641436380,0.002,1882.3,1881.3,0.53754]
[1680641436381,0.002,1882.3,1881.5,8.40102218]
[1680641436583,2.256,1882.6,1881.6,3.6061244]
[1680641436778,10.4107,1882.9,1881.6,0.006]
[1680641436779,2.256,1882.4,1881.6,0.006]
[1680641436993,2.256,1882.0,1881.6,0.006]
[1680641437611,2.256,1882.0,1881.6,0.26572]
[1680641437825,2.256,1882.0,1881.5,0.26573]
[1680641438030,2.4816,1882.0,1881.3,0.53153]
[1680641438235,2.256,1881.7,1881.3,0.006]
[1680641438417,2.256,1881.5,1881.2,0.006]
[1680641438735,0.2276,1882.0,1881.0,0.006]
[1680641438736,2.256,1881.3,1881.0,0.006]
[1680641438891,2.256,1881.1,1880.6,0.26586]
[1680641439084,0.002,1881.5,1880.5,0.36587]
[1680641439085,2.256,1881.0,1880.5,0.36587]
[1680641439507,2.256,1881.0,1880.5,0.1]
[1680641439727,2.256,1881.0,1880.7,0.26566083]
[1680641440380,2.256,1880.8,1880.7,0.26566083]
[1680641440580,2.256,1880.8,1880.5,0.1]
[1680641440777,2.256,1880.7,1880.5,0.1]
[1680641441229,2.256,1880.7,1880.5,0.05]
[1680641441613,2.256,1880.7,1880.6,0.36792084]
[1680641442214,6.92602218,1880.9,1880.6,0.36792084]
[1680641442414,7.6411844,1880.9,1880.6,0.36792084]
[1680641442630,7.6411844,1880.9,1880.5,0.05]
[1680641442788,7.6411844,1880.9,1880.3,0.2659]
[1680641442990,7.6411844,1880.9,1880.2,5.637]
[1680641443186,7.6411844,1880.9,1880.2,5.90291]
[1680641443385,0.76411844,1880.8,1880.2,5.90291]
[1680641443740,0.76411844,1880.8,1880.4,0.26589]
[1680641443898,0.76411844,1880.8,1880.3,6.27247623]
[1680641444107,4.16,1880.9,1880.4,0.2659]
[1680641444416,4.158,1880.9,1880.4,0.2659]
[1680641444619,4.158,1880.9,1880.3,5.9029]
[1680641444830,4.149,1880.6,1880.3,0.002]
[1680641445023,4.149,1880.4,1880.1,0.1]
[1680641445205,2.76602218,1880.3,1880.1,0.1]
[1680641445403,0.69150222,1880.3,1880.1,0.1]
[1680641445745,4.151,1880.4,1880.1,0.1]
[1680641445895,4.149,1880.4,1880.1,0.1]
[1680641446535,6.92402218,1880.4,1880.2,0.29823597]
[1680641446735,2.76602218,1880.3,1880.2,0.29823597]
[1680641447124,5.97702218,1880.3,1880.2,0.29823597]
[1680641447322,3.7817244,1880.3,1880.2,0.29823597]
[1680641447525,0.011,1880.4,1880.1,0.1]
[1680641447692,3.009,1880.7,1880.1,0.1]
[1680641448135,0.003,1880.7,1880.1,0.36594]
[1680641448446,0.009,1880.7,1880.3,0.2659]
[1680641448604,0.009,1880.7,1880.2,5.90458828]
[1680641448807,2.76602218,1880.7,1880.2,0.53550828]
[1680641449140,2.77502218,1880.7,1880.2,0.53350828]
[1680641449851,0.009,1880.7,1880.4,0.26589]
[1680641450151,0.2346,1881.0,1880.4,0.26589]
[1680641450456,2.76602218,1880.7,1880.3,0.002]
[1680641450751,3.4575244,1880.7,1880.2,0.26592]
[1680641451438,0.009,1880.7,1880.2,5.92268993]
[1680641451641,4.3756,1881.0,1880.2,5.92468993]
[1680641451642,0.009,1880.9,1880.2,5.92468993]
[1680641452504,0.009,1880.9,1880.4,5.635]
[1680641452750,0.002,1881.0,1880.6,5.635]
[1680641452751,0.009,1881.0,1880.6,5.635]
[1680641452949,0.009,1881.0,1880.7,0.26585]
[1680641453259,0.009,1881.1,1880.7,0.26585]
[1680641453753,0.009,1881.2,1880.7,0.26585]
[1680641454206,0.009,1881.2,1880.7,6.278457]
[1680641454551,0.009,1881.2,1880.7,6.546307]
[1680641454853,0.009,1881.2,1880.9,0.26582]
[1680641455003,0.009,1881.4,1880.9,5.90082]
[1680641455203,0.009,1881.4,1880.9,5.90282]
[1680641455445,0.009,1881.4,1880.9,0.6476263]
[1680641455446,2.76602218,1881.4,1880.9,0.6476263]
[1680641455601,2.77502218,1881.4,1881.0,0.30415503]
[1680641455999,6.99633218,1881.3,1881.0,0.30415503]
[1680641456254,6.99833218,1881.3,1881.0,0.30415503]
[1680641456553,0.69983322,1881.2,1880.5,0.26587]
[1680641456775,6.90502218,1881.1,1880.1,5.737]
[1680641456923,4.124,1880.9,1880.3,0.2659]
[1680641457257,7.31142218,1880.9,1880.3,0.2659]
[1680641457551,7.31342218,1880.9,1880.3,0.2659]
[1680641458862,7.31342218,1880.9,1880.1,0.102]
[1680641458863,4.15,1880.4,1880.1,0.102]
[1680641459024,2.76602218,1880.4,1880.1,0.1]
[1680641459228,0.002,1880.5,1880.1,0.36594]
[1680641459422,2.76602218,1880.5,1880.1,0.1]
[1680641459623,2.76602218,1880.4,1880.1,0.1]
[1680641460346,0.011,1880.5,1880.1,0.36593]
[1680641460523,4.15,1880.6,1880.1,0.1]
[1680641460524,4.26535,1880.6,1880.1,0.1]
[1680641460731,2.76602218,1880.5,1880.1,0.1]
[1680641460923,3.4691594,1880.5,1880.1,0.1]
[1680641461124,4.15,1880.4,1880.1,0.1]
[1680641461347,2.76602218,1880.3,1880.1,0.1]
[1680641461665,4.124,1880.2,1880.1,0.1]
[1680641461861,6.89002218,1880.2,1880.1,0.1]
[1680641462164,8.17872662,1880.2,1880.1,0.1]
[1680641462325,2.76802218,1880.2,1880.1,0.1]
[1680641462514,2.76602218,1880.2,1880.1,0.45857302]
[1680641463014,6.99639218,1880.2,1880.1,0.45857302]
[1680641463216,10.42213218,1880.2,1880.1,0.45857302]
[1680641463538,11.2615054,1880.2,1880.1,0.1]
[1680641464318,15.1207254,1880.2,1879.5,0.1]
[1680641464541,4.124,1879.7,1879.5,0.1]
[1680641464934,0.002,1879.8,1879.5,6.53307]
[1680641465265,8.28748322,1880.2,1879.7,0.26599]
[1680641465266,7.14,1880.2,1879.7,0.26599]
[1680641465469,7.14,1880.2,1879.7,0.79798]
[1680641465470,2.76802218,1880.2,1879.7,0.79798]
[1680641465637,2.76602218,1880.2,1879.7,0.26599]
[1680641465831,2.76602218,1880.1,1879.6,1.29334424]
[1680641466051,2.76602218,1880.1,1879.6,1.02534424]
[1680641466486,2.76602218,1880.1,1879.6,0.63204724]
[1680641467102,2.76602218,1880.1,1879.6,0.63804724]
[1680641468140,2.76602218,1880.1,1879.6,0.63803724]
[1680641470041,3.211,1880.0,1879.6,0.63803724]
[1680641470414,2.76602218,1879.9,1879.6,0.36603724]
[1680641470760,2.76602218,1879.8,1879.6,0.36603724]
[1680641471082,16.08120218,1879.7,1879.6,0.36603724]
[1680641471281,13.23541218,1879.7,1879.6,0.36603724]
[1680641471440,19.31320218,1879.7,1879.6,0.36603724]
[1680641471645,21.2675224,1879.7,1879.5,0.1]
[1680641471873,6.20702218,1879.6,1879.5,0.1]
[1680641472085,6.52823218,1879.6,1879.5,0.1]
[1680641472742,12.58885218,1879.6,1879.0,0.1]
[1680641472988,10.12702218,1879.1,1879.0,0.1]
[1680641473204,10.87404218,1879.1,1879.0,0.1]
[1680641473357,11.10404218,1879.1,1879.0,0.1]
[1680641473882,10.44831218,1879.1,1879.0,0.1]
[1680641474983,16.31331218,1879.1,1879.0,0.1]
[1680641475282,12.3522164,1879.1,1879.0,0.1]
[1680641475637,17.9872164,1879.1,1879.0,0.1]
[1680641476089,17.6679264,1879.1,1879.0,0.1]
[1680641476244,17.9872164,1879.1,1879.0,0.1]
[1680641476642,20.9872164,1879.1,1879.0,0.1]
[1680641478395,20.9872164,1879.1,1877.4,0.1]
[1680641478396,8.40102218,1877.7,1877.4,0.1]
[1680641478593,4.124,1877.5,1877.4,0.1]
[1680641478888,6.89002218,1877.5,1876.7,0.55592684]
[1680641479189,6.89002218,1877.5,1876.8,0.07740204]
[1680641479190,2.87454218,1877.5,1876.8,0.07740204]
[1680641479345,0.002,1877.6,1876.8,0.07740204]
[1680641479544,0.10651,1877.8,1876.8,0.07740204]
[1680641479545,0.1065,1877.8,1876.8,0.07740204]
[1680641479739,9.8915,1877.8,1876.8,0.07740204]
[1680641479955,0.10652,1877.5,1876.8,0.02180936]
[1680641480155,2.89918218,1877.4,1876.8,0.02180936]